bitfinex-derivatives/quotes_ETHF0:USTF0_20241005
["timestamp","ask_amount","ask_price","bid_price","bid_amount"]
[1728138482644,0.29024,2411.7,2411.6,3.49804]
[1728138483048,0.29024,2411.7,2411.6,3.2078]
[1728138487756,0.29024,2411.6,2411.5,1.48596799]
[1728138488157,0.29024,2411.6,2411.5,4.69376799]
[1728138489462,0.29024,2411.6,2411.5,1.48596799]
[1728138489761,0.29024,2411.6,2411.5,4.69376799]
[1728138490462,0.29024,2411.6,2411.5,6.11829467]
[1728138490758,0.29024,2411.6,2411.5,4.69376799]
[1728138491260,0.29024,2411.6,2411.5,5.20773087]
[1728138491454,0.29024,2411.6,2411.5,6.63231134]
[1728138492548,0.29024,2411.6,2411.5,7.17469534]
[1728138492956,0.29024,2411.6,2411.5,6.63496895]
[1728138493259,0.412,2411.9,2411.5,7.17469534]
[1728138493459,0.29023,2411.7,2411.6,2.5124172]
[1728138493657,0.29023,2411.7,2411.6,3.02650324]
[1728138493861,0.29023,2411.7,2411.6,2.5124172]
[1728138494055,0.29023,2411.7,2411.6,3.02650232]
[1728138495456,0.29023,2411.7,2411.6,3.56623549]
[1728138496760,0.29023,2411.8,2411.6,3.56623549]
[1728138496953,0.29023,2411.8,2411.7,1.08779406]
[1728138499053,0.29023,2411.8,2411.7,1.49969406]
[1728138499371,0.29019,2412.1,2411.8,0.29022]
[1728138499561,0.29019,2412.1,2411.9,1.51115678]
[1728138500177,0.29019,2412.1,2412.0,1.08775678]
[1728138500456,0.4126,2412.2,2411.9,4.71895678]
[1728138500663,0.70278,2412.2,2411.9,5.00915678]
[1728138501058,0.29019,2412.1,2411.9,4.71895678]
[1728138509163,0.2902,2412.0,2411.9,4.71895678]
[1728138509365,0.2902,2412.0,2411.9,3.6312]
[1728138512272,1.49,2412.0,2411.8,1.08775678]
[1728138512462,6.8661,2411.9,2411.6,4.29555678]
[1728138512671,1.78023,2411.7,2411.6,4.29555678]
[1728138512872,1.78023,2411.7,2411.6,3.2078]
[1728138517464,1.2297,2411.9,2411.6,4.98804]
[1728138517673,1.2297,2411.9,2411.6,6.07579678]
[1728138517877,1.51991,2411.9,2411.6,6.07579678]
[1728138518071,1.51991,2411.9,2411.6,5.78555678]
[1728138518273,1.2297,2411.9,2411.6,6.07579678]
[1728138518471,1.51991,2411.9,2411.6,6.07579678]
[1728138518678,1.2297,2411.9,2411.6,6.07579678]
[1728138518883,1.2297,2411.9,2411.6,5.78555678]
[1728138519180,1.51991,2411.9,2411.6,6.07579678]
[1728138521274,1.51991,2411.9,2411.6,4.58579678]
[1728138521776,1.51991,2411.9,2411.6,3.2078]
[1728138521777,0.29023,2411.7,2411.6,3.2078]
[1728138522173,4.43663,2411.7,2411.6,3.2078]
[1728138524077,4.1464,2411.7,2411.4,1.37802678]
[1728138524280,0.70505,2411.6,2411.4,4.58582678]
[1728138524583,0.4031,2411.5,2411.4,4.58582678]
[1728138525880,0.4031,2411.5,2411.4,4.29555678]
[1728138528082,0.69336,2411.5,2411.4,4.29555678]
[1728138528784,0.4031,2411.5,2411.4,4.29555678]
[1728138530284,2.57596,2411.5,2411.4,3.2078]
[1728138534290,2.57596,2411.5,2411.3,3.6259]
[1728138538990,2.2857,2411.5,2411.3,3.6259]
[1728138539183,0.29027,2411.4,2411.3,3.6259]
[1728138539889,2.57597,2411.5,2411.3,3.6259]
[1728138540782,4.1472,2411.4,2411.3,3.2078]
[1728138540987,4.43747,2411.4,2411.3,3.2078]
[1728138543486,10.43747,2411.4,2411.3,3.2078]
[1728138545489,0.2903,2411.1,2411.0,3.2078]
[1728138545792,1.7803,2411.1,2411.0,3.2078]
[1728138547184,5.9275,2411.1,2411.0,3.2078]
[1728138548095,1.49,2411.1,2410.8,0.8536]
[1728138548296,1.78033,2410.9,2410.8,4.0614]
[1728138549195,1.78033,2410.9,2410.8,0.8536]
[1728138549402,1.78033,2410.9,2410.8,4.0614]
[1728138549590,1.78033,2410.9,2410.8,0.8536]
[1728138549792,1.78033,2410.9,2410.8,4.0614]
[1728138552998,1.78033,2410.9,2410.8,0.8536]
[1728138553602,1.78033,2410.9,2410.8,4.0614]
[1728138554205,1.78033,2410.9,2410.8,0.8536]
[1728138554596,1.78033,2410.9,2410.8,4.0614]
[1728138555500,1.49,2410.9,2410.8,4.0614]
[1728138556498,1.78033,2410.9,2410.8,4.0614]
[1728138556803,1.78033,2410.9,2410.8,0.8536]
[1728138557007,1.49,2410.9,2410.8,4.35174]
[1728138557306,1.49,2410.9,2410.8,4.0614]
[1728138557605,1.78033,2410.9,2410.8,4.0614]
[1728138557905,1.49,2410.9,2410.8,4.0614]
[1728138559006,1.49,2410.9,2410.8,0.8536]
[1728138559203,1.49,2410.9,2410.8,4.0614]
[1728138559694,1.78033,2410.9,2410.8,4.0614]
[1728138567201,1.78033,2410.9,2410.8,3.2078]
[1728138567202,5.92833,2410.9,2410.8,3.2078]
[1728138569407,1.78033,2410.9,2410.8,3.2078]
[1728138569609,5.92833,2410.9,2410.8,3.2078]
[1728138575216,0.29034,2410.8,2410.6,4.33146]
[1728138575411,1.49,2410.7,2410.6,4.33146]
[1728138575611,1.78032,2411.0,2410.8,0.29034]
[1728138576208,1.78032,2411.0,2410.9,0.4083]
[1728138587521,1.78032,2411.0,2410.9,1.49605678]
[1728138587720,0.388,2411.1,2410.9,1.49605678]
[1728138587937,1.78031,2411.1,2411.0,1.08775678]
[1728138588116,1.78031,2411.1,2411.0,1.51345678]
[1728138590621,1.78031,2411.1,2411.0,2.94349545]
[1728138590919,1.49,2411.1,2410.9,1.49605678]
[1728138591123,0.70852,2411.0,2410.9,1.49605678]
[1728138591321,0.70852,2411.0,2410.9,3.4406186]
[1728138591526,0.70852,2411.0,2410.9,1.49605678]
[1728138591718,0.70852,2411.0,2410.9,3.44073973]
[1728138592322,0.70852,2411.0,2410.9,3.03247181]
[1728138592523,0.70852,2411.0,2410.9,1.08775678]
[1728138595122,0.4182,2411.0,2410.8,1.08775678]
[1728138595330,0.29034,2410.8,2410.7,2.42055199]
[1728138595629,0.29034,2410.8,2410.7,4.3653115]
[1728138596926,0.29034,2410.8,2410.7,3.85078075]
[1728138597127,0.29034,2410.8,2410.7,4.36531016]
[1728138598731,0.29034,2410.8,2410.7,2.9350814]
[1728138599028,0.29034,2410.8,2410.7,4.36522624]
[1728138600327,0.29034,2410.8,2410.7,3.85069683]
[1728138600635,0.29034,2410.8,2410.7,3.82660768]
[1728138601525,2.3329,2410.9,2410.7,3.82660768]
[1728138601730,1.9055,2410.9,2410.7,1.88196623]
[1728138601936,1.9055,2410.9,2410.8,1.08856623]
[1728138601937,2.19583,2410.9,2410.8,1.08856623]
[1728138603447,2.19583,2410.9,2410.7,1.48306623]
[1728138603448,0.29034,2410.8,2410.7,1.48306623]
[1728138603631,0.29034,2410.8,2410.7,3.42756975]
[1728138605134,0.29034,2410.8,2410.7,2.33900352]
[1728138605337,0.29034,2410.8,2410.7,3.42738617]
[1728138606038,0.29034,2410.8,2410.7,1.99735148]
[1728138606242,0.29034,2410.8,2410.7,1.48288265]
[1728138606543,0.29034,2410.8,2410.7,1.99733498]
[1728138606740,0.29034,2410.8,2410.7,1.48288265]
[1728138606935,0.29034,2410.8,2410.7,3.42725261]
[1728138607238,0.29034,2410.8,2410.7,1.08838265]
[1728138607537,0.29034,2410.8,2410.5,5.92333464]
[1728138607538,0.29036,2410.6,2410.5,5.92333464]
[1728138607733,1.78036,2410.6,2410.5,4.29618265]
[1728138608248,2.58906,2410.6,2410.5,3.2078]
[1728138610635,0.29038,2410.5,2410.4,0.4222]
[1728138613146,2.58907,2410.6,2410.4,0.71259]
[1728138613443,2.18357,2410.6,2410.4,0.71259]
[1728138615141,2.18357,2410.6,2410.4,0.4222]
[1728138615547,0.4138,2410.9,2410.4,0.4222]
[1728138615743,1.49,2410.9,2410.5,1.8789]
[1728138615944,1.49,2410.9,2410.7,0.29034]
[1728138616150,1.49,2410.9,2410.6,1.08838265]
[1728138616151,1.49,2410.9,2410.8,0.69834]
[1728138631256,0.8397,2411.2,2410.9,0.29033]
[1728138631549,0.8397,2411.2,2411.0,0.29031]
[1728138631550,1.49,2411.1,2411.0,0.29031]
[1728138631745,1.49,2411.1,2411.0,0.70461]
[1728138632349,1.49,2411.1,2411.0,3.91241]
[1728138632651,5.03461249,2411.4,2411.0,7.7693]
[1728138632652,1.49,2411.2,2411.0,7.7693]
[1728138632850,1.49,2411.2,2411.1,0.29029]
[1728138633351,1.49,2411.5,2411.3,0.29028]
[1728138633554,1.49,2411.5,2411.4,1.09067]
[1728138633752,1.49,2411.5,2411.4,1.50497]
[1728138633955,1.49,2411.5,2411.4,1.2147]
[1728138634552,1.78026,2411.5,2411.4,0.8156]
[1728138634759,2.57566,2411.5,2411.4,0.8156]
[1728138635346,1.49,2411.5,2411.4,0.8156]
[1728138635756,1.78026,2411.5,2411.4,0.8156]
[1728138639959,1.49,2411.5,2411.4,0.8156]
[1728138641459,1.78026,2411.5,2411.4,0.8156]
[1728138647161,0.29027,2411.4,2411.3,3.2078]
[1728138647369,2.59037,2411.4,2411.3,3.2078]
[1728138649466,2.59037,2411.4,2411.3,3.49808]
[1728138649467,1.8933,2411.4,2411.3,3.49808]
[1728138649770,1.8933,2411.4,2411.3,3.2078]
[1728138649771,2.18357,2411.4,2411.3,3.2078]
[1728138654471,1.8933,2411.4,2411.3,3.2078]
[1728138654671,1.8933,2411.4,2411.3,3.49808]
[1728138654672,0.4033,2411.4,2411.3,3.49808]
[1728138654866,0.387,2411.7,2411.3,7.355]
[1728138655069,0.29024,2411.6,2411.4,1.50256]
[1728138656377,2.2967,2411.7,2411.4,1.50256]
[1728138656581,0.29024,2411.6,2411.4,1.50256]
[1728138656984,0.29026,2411.5,2411.4,1.2123]
[1728138657877,0.29025,2411.6,2411.4,1.50257]
[1728138658281,2.2967,2411.7,2411.4,1.50257]
[1728138658282,0.29026,2411.5,2411.4,1.50257]
[1728138658575,2.2967,2411.7,2411.4,1.50257]
[1728138658576,0.29025,2411.6,2411.4,1.50257]
[1728138658787,0.29026,2411.5,2411.4,1.50257]
[1728138658986,0.29026,2411.5,2411.4,1.2123]
[1728138659386,2.2967,2411.7,2411.4,1.2123]
[1728138659387,0.29025,2411.6,2411.4,1.50257]
[1728138659589,0.29025,2411.6,2411.4,1.2123]
[1728138660786,0.29026,2411.5,2411.4,1.2123]
[1728138660982,2.2967,2411.7,2411.4,1.2123]
[1728138661189,0.29025,2411.6,2411.4,1.2123]
[1728138661783,0.944,2412.0,2411.4,1.2123]
[1728138661784,4.298,2412.4,2411.5,4.1464]
[1728138661990,0.4233,2412.0,2411.7,1.49]
[1728138662284,4.6978,2412.2,2412.0,0.2902]
[1728138662591,4.6978,2412.2,2411.8,11.09148769]
[1728138662592,4.98797,2412.2,2412.1,0.4058]
[1728138663885,3.2078,2412.2,2412.1,4.84158]
[1728138667581,3.2078,2412.2,2412.1,6.33158]
[1728138668285,0.097,2412.7,2412.6,0.29012]
[1728138668485,0.29011,2412.8,2412.6,7.3526]
[1728138668793,0.2901,2412.8,2412.6,3.2078]
[1728138668989,0.4048,2412.7,2412.6,3.2078]
[1728138669686,0.4048,2412.7,2412.6,7.3526]
[1728138670087,0.4048,2412.7,2412.6,3.2078]
[1728138670283,1.8948,2412.7,2412.6,3.2078]
[1728138673088,2.18491,2412.7,2412.6,3.2078]
[1728138673288,2.60751,2412.7,2412.6,3.2078]
[1728138674590,0.29015,2412.4,2412.2,3.2078]
[1728138674890,1.2208,2412.3,2412.2,3.2078]
[1728138675195,1.2208,2412.3,2412.2,3.49797]
[1728138675391,0.7982,2412.3,2412.2,3.49797]
[1728138676191,0.4226,2412.6,2412.4,0.29014]
[1728138676498,0.926,2412.8,2412.5,3.2078]
[1728138676499,2.2882,2412.7,2412.5,3.2078]
[1728138677197,2.57831,2412.7,2412.5,3.2078]
[1728138677594,2.2882,2412.7,2412.5,3.49794]
[1728138679202,2.2882,2412.7,2412.5,3.2078]
[1728138679203,0.7982,2412.7,2412.5,3.2078]
[1728138679399,0.7982,2412.7,2412.6,0.71102]
[1728138680201,0.7982,2412.7,2412.6,0.4209]
[1728138680699,0.7982,2412.7,2412.6,0.71102]
[1728138681203,0.7982,2412.7,2412.6,0.4209]
[1728138681496,0.7982,2412.7,2412.6,0.71102]
[1728138681692,0.7982,2412.7,2412.5,3.2078]
[1728138681899,0.7982,2412.7,2412.5,3.49793]
[1728138683801,0.7982,2412.7,2412.5,0.29013]
[1728138684305,0.7982,2412.7,2412.5,3.49793]
[1728138684607,0.7982,2412.7,2412.5,0.29013]
[1728138684908,1.08831,2412.7,2412.5,3.49793]
[1728138685105,0.7982,2412.7,2412.5,3.49793]
[1728138685400,2.57832,2412.7,2412.5,3.2078]
[1728138687802,2.57832,2412.7,2412.5,3.49794]
[1728138688000,2.57832,2412.7,2412.5,3.2078]
[1728138688200,2.57832,2412.7,2412.5,0.29013]
[1728138688700,2.57832,2412.7,2412.4,3.613]
[1728138688906,2.2882,2412.7,2412.4,3.2078]
[1728138689101,1.49,2412.6,2412.4,3.2078]
[1728138689311,1.78013,2412.6,2412.4,3.2078]
[1728138689503,1.49,2412.6,2412.4,3.49794]
[1728138689902,1.78012,2412.6,2412.4,3.49794]
[1728138693317,1.78012,2412.6,2412.4,0.29014]
[1728138694206,0.29012,2412.6,2412.4,0.29014]
[1728138695014,0.29012,2412.6,2412.3,3.6077]
[1728138695211,2.2882,2412.7,2412.3,3.89785]
[1728138695517,0.29014,2412.5,2412.3,3.49795]
[1728138695913,0.426,2412.4,2412.3,3.49795]
[1728138700010,0.29012,2412.6,2412.4,0.29014]
[1728138700211,0.4278,2412.6,2412.4,0.68284]
[1728138701511,0.71793,2412.6,2412.4,0.68284]
[1728138702212,0.4278,2412.6,2412.4,0.68284]
[1728138702509,0.71793,2412.6,2412.4,0.68284]
[1728138703214,0.71793,2412.6,2412.4,0.3927]
[1728138703618,0.71793,2412.6,2412.4,0.68284]
[1728138707017,0.71793,2412.6,2412.4,0.3927]
[1728138707420,0.71793,2412.6,2412.4,0.68285]
[1728138707925,0.29014,2412.5,2412.4,0.3927]
[1728138708122,0.29014,2412.5,2412.3,4.58037513]
[1728138709418,0.29014,2412.5,2412.4,1.08241513]
[1728138710215,0.4278,2412.6,2412.4,1.37255513]
[1728138710411,0.4278,2412.6,2412.5,0.3874]
[1728138710626,0.4278,2412.6,2412.5,0.7902]
[1728138711717,0.4278,2412.6,2412.5,1.87261513]
[1728138712024,0.4278,2412.6,2412.5,2.27691513]
[1728138712528,0.71792,2412.6,2412.5,2.27691513]
[1728138713425,0.71792,2412.6,2412.5,3.704607]
[1728138713821,0.4278,2412.6,2412.5,4.21821494]
[1728138714228,0.71792,2412.6,2412.5,3.704607]
[1728138714420,0.71792,2412.6,2412.5,4.21824278]
[1728138714725,0.71792,2412.6,2412.5,2.27691513]
[1728138716627,0.29014,2412.5,2412.3,4.29021513]
[1728138716826,2.19075,2412.4,2412.3,4.29021513]
[1728138717027,2.19075,2412.4,2412.3,3.2078]
[1728138720921,2.19075,2412.4,2412.3,4.29021513]
[1728138721625,0.70075,2412.4,2412.3,4.29021513]
[1728138723024,0.4278,2412.6,2412.4,0.29015]
[1728138723228,0.4278,2412.6,2412.4,1.37256513]
[1728138723229,0.71793,2412.6,2412.4,1.37256513]
[1728138724523,0.4278,2412.6,2412.4,1.08241513]
[1728138724726,0.71793,2412.6,2412.4,1.37255513]
[1728138725227,0.29014,2412.5,2412.4,1.08241513]
[1728138725624,1.78014,2412.5,2412.4,1.08241513]
[1728138725821,1.78014,2412.5,2412.3,4.58036513]
[1728138726022,1.78014,2412.5,2412.4,1.37256513]
[1728138726228,1.78014,2412.5,2412.4,1.08241513]
[1728138727833,0.29015,2412.4,2412.3,4.29021513]
[1728138728026,0.29015,2412.4,2412.3,6.23280767]
[1728138728337,5.92575,2412.4,2412.3,3.2078]
[1728138729637,0.29018,2412.1,2412.0,1.08241513]
[1728138729844,0.29018,2412.1,2411.8,1.08241513]
[1728138729845,0.29021,2411.9,2411.8,1.08241513]
[1728138730136,0.29021,2411.9,2411.7,0.097]
[1728138730137,1.9158,2412.0,2411.5,1.37266513]
[1728138730435,0.29023,2411.7,2411.5,1.37266513]
[1728138730739,2.59143,2411.8,2411.6,0.29024]
[1728138730933,1.9158,2412.0,2411.7,3.2078]
[1728138731240,2.206,2412.0,2411.8,0.8135]
[1728138731434,0.29021,2411.9,2411.8,0.8135]
[1728138734537,1.78021,2411.9,2411.8,0.4251]
[1728138746444,1.78021,2411.9,2411.6,3.2078]
[1728138746445,0.29023,2411.7,2411.6,3.2078]
[1728138746840,0.29024,2411.6,2411.5,0.3871]
[1728138747140,0.29024,2411.6,2411.3,1.18148286]
[1728138747141,0.29027,2411.4,2411.3,0.4032]
[1728138747338,1.49,2411.4,2411.2,3.5949]
[1728138747539,0.68168,2411.3,2411.2,3.5949]
[1728138747740,0.68168,2411.3,2411.2,3.2078]
[1728138748048,1.07378,2411.3,2411.2,3.2078]
[1728138752748,0.68168,2411.3,2411.2,3.2078]
[1728138756762,4.82888,2411.3,2411.2,3.2078]
[1728138759459,4.5386,2411.3,2410.9,3.2078]
[1728138759759,1.78032,2411.0,2410.9,3.2078]
[1728138760363,1.49,2411.0,2410.9,3.49813]
[1728138760765,1.8876,2411.0,2410.9,3.49813]
[1728138761966,0.29031,2411.1,2410.9,3.49813]
[1728138762364,0.29031,2411.1,2411.0,0.29032]
[1728138763066,0.29031,2411.1,2410.9,3.49812]
[1728138764663,0.2903,2411.1,2410.9,3.49812]
[1728138768171,2.294,2411.2,2410.9,3.2078]
[1728138768172,0.29032,2411.0,2410.9,3.2078]
[1728138774273,1.78032,2411.0,2410.9,3.2078]
[1728138779880,1.49,2411.0,2410.7,0.29035]
[1728138780179,1.49,2410.8,2410.7,0.71305]
[1728138780572,1.49,2411.0,2410.7,0.4227]
[1728138780782,1.78032,2411.0,2410.8,3.89664]
[1728138781571,1.78032,2411.0,2410.8,3.6063]
[1728138782576,1.78032,2411.0,2410.8,3.89664]
[1728138783377,1.78032,2411.0,2410.8,3.6063]
[1728138783777,1.49,2411.0,2410.8,3.6063]
[1728138783982,1.78032,2411.0,2410.8,3.89664]
[1728138784385,1.78032,2411.0,2410.8,3.6063]
[1728138784590,0.29033,2410.9,2410.8,3.6063]
[1728138784782,1.78032,2411.0,2410.8,3.6063]
[1728138785088,1.78032,2411.0,2410.8,3.89664]
[1728138785287,1.78032,2411.0,2410.8,3.6063]
[1728138785686,1.78032,2411.0,2410.8,3.89664]
[1728138787082,0.4281,2411.1,2410.8,3.6063]
[1728138787284,0.4281,2411.1,2410.9,0.29032]
[1728138787586,0.4281,2411.1,2411.0,0.3997]
[1728138787791,0.4281,2411.1,2411.0,0.7982]
[1728138787986,0.7184,2411.1,2411.0,0.7982]
[1728138789592,1.7803,2411.2,2411.0,1.08852]
[1728138790296,0.4051,2411.3,2411.1,3.2078]
[1728138790592,0.4051,2411.3,2411.1,3.4981]
[1728138791490,2.18539,2411.3,2411.1,3.2078]
[1728138792097,1.8951,2411.3,2411.1,3.4981]
[1728138792290,2.18538,2411.3,2411.1,3.4981]
[1728138793786,2.18538,2411.3,2411.1,3.2078]
[1728138794092,0.29029,2411.2,2411.1,3.2078]
[1728138794290,2.18538,2411.3,2411.1,3.2078]
[1728138794483,2.18538,2411.3,2411.1,3.4981]
[1728138795189,1.8951,2411.3,2411.1,3.4981]
[1728138796191,1.8951,2411.3,2411.1,3.2078]
[1728138796394,1.8951,2411.3,2411.2,0.29029]
[1728138797199,0.4022,2411.4,2411.2,0.29029]
[1728138797200,0.097,2411.7,2411.2,7.14548286]
[1728138797498,0.68503,2411.8,2411.6,1.08448286]
[1728138797697,0.68503,2411.8,2411.7,1.2236]
[1728138798388,0.3991,2411.9,2411.7,1.2236]
[1728138798389,0.29022,2411.9,2411.7,1.51383]
[1728138798592,1.8777,2412.0,2411.7,1.2236]
[1728138798593,0.29022,2411.8,2411.7,1.2236]
[1728138800696,1.78022,2411.8,2411.7,1.2236]
[1728138804097,5.6364,2411.8,2411.6,3.2078]
[1728138804304,0.29026,2411.5,2411.3,1.09118]
[1728138804497,0.3956,2411.4,2411.3,1.09118]
[1728138805906,0.3956,2411.4,2411.1,4.29228286]
[1728138806201,1.49,2411.3,2411.2,0.29029]
[1728138806604,1.8856,2411.4,2411.1,3.2078]
[1728138806807,0.3956,2411.4,2411.3,0.29028]
[1728138807305,1.9025,2411.7,2411.3,5.6372]
[1728138807509,1.9025,2411.7,2411.5,0.29026]
[1728138807510,2.58864,2411.7,2411.5,0.29026]
[1728138807993,2.2984,2411.7,2411.5,0.29026]
[1728138808199,1.8859,2411.7,2411.5,0.29026]
[1728138808797,2.17614,2411.7,2411.5,0.29026]
[1728138810708,2.17614,2411.7,2411.4,4.4452]
[1728138811209,2.17614,2411.7,2411.5,0.29026]
[1728138811507,0.3959,2411.7,2411.4,4.4452]
[1728138811807,0.3959,2411.7,2411.6,0.29024]
[1728138812207,0.3959,2411.7,2411.4,4.4452]
[1728138812405,0.3959,2411.7,2411.5,0.29026]
[1728138813005,2.17614,2411.7,2411.5,0.29025]
[1728138813902,2.17614,2411.7,2411.6,0.29024]
[1728138813903,0.3959,2411.7,2411.6,0.29024]
[1728138815308,0.3959,2411.7,2411.4,4.4452]
[1728138815500,0.68613,2411.7,2411.5,0.29025]
[1728138817210,0.68613,2411.7,2411.6,0.29024]
[1728138818512,0.3959,2411.7,2411.6,0.29024]
[1728138819304,0.29025,2411.6,2411.4,3.89056]
[1728138819504,0.387,2411.5,2411.4,3.89056]
[1728138822211,1.8859,2411.7,2411.6,0.29024]
[1728138823211,2.17613,2411.7,2411.6,0.29024]
[1728138823518,2.17613,2411.7,2411.5,0.69015]
[1728138824223,2.17613,2411.7,2411.6,0.29024]
[1728138824413,2.17613,2411.7,2411.5,0.3999]
[1728138824414,2.17613,2411.7,2411.5,0.69015]
[1728138826113,1.8859,2411.7,2411.6,0.29024]
[1728138829627,4.03021,2412.3,2411.6,4.1464]
[1728138829927,0.29022,2411.8,2411.6,0.29024]
[1728138830422,0.4125,2411.7,2411.6,4.43664]
[1728138830818,0.4125,2411.7,2411.6,0.29024]
[1728138833126,0.4125,2411.7,2411.6,0.69854]
[1728138836336,0.4125,2411.7,2411.6,1.78302286]
[1728138836912,0.4125,2411.7,2411.6,1.49278286]
[1728138837121,0.70273,2411.7,2411.6,1.49278286]
[1728138837322,0.70273,2411.7,2411.6,1.08448286]
[1728138838818,0.4125,2411.7,2411.6,1.37472286]
[1728138840522,0.4125,2411.7,2411.6,2.80028806]
[1728138840729,0.70273,2411.7,2411.6,2.51004806]
[1728138841522,0.70273,2411.7,2411.6,3.05228949]
[1728138841921,0.70273,2411.7,2411.6,1.4255652]
[1728138842119,0.4125,2411.7,2411.6,1.4255652]
[1728138842324,0.4125,2411.7,2411.6,3.34252949]
[1728138842524,0.4125,2411.7,2411.6,4.94393348]
[1728138842821,0.4125,2411.7,2411.6,3.85657131]
[1728138843026,0.4125,2411.7,2411.6,3.56633131]
[1728138843226,0.70273,2411.7,2411.6,3.56633131]
[1728138845128,0.70273,2411.7,2411.6,3.05228949]
[1728138845339,0.70273,2411.7,2411.6,3.5664517]
[1728138845627,0.70273,2411.7,2411.6,3.05228949]
[1728138845823,0.70273,2411.7,2411.6,2.51329817]
[1728138846021,0.70273,2411.7,2411.6,3.02857057]
[1728138846222,0.70273,2411.7,2411.6,1.6018986]
[1728138846421,0.70273,2411.7,2411.6,1.08773297]
[1728138847134,0.29024,2411.6,2411.5,1.08773297]
[1728138847323,0.29024,2411.6,2411.5,2.51442698]
[1728138847523,1.78024,2411.6,2411.5,1.08773297]
[1728138848026,0.29026,2411.5,2411.4,4.29553297]
[1728138848332,0.71376,2411.5,2411.4,6.236421]
[1728138849125,0.71376,2411.5,2411.4,6.23634888]
[1728138849324,0.71376,2411.5,2411.4,5.72216282]
[1728138850133,0.71376,2411.5,2411.4,5.72212399]
[1728138850325,0.71376,2411.5,2411.4,4.29553297]
[1728138851228,2.20376,2411.5,2411.4,4.29553297]
[1728138851425,1.9135,2411.5,2411.3,2.71445726]
[1728138851731,1.10077,2411.4,2411.3,1.08773297]
[1728138853026,0.8105,2411.4,2411.3,3.02838707]
[1728138853223,0.8105,2411.4,2411.3,2.51426162]
[1728138853422,1.10077,2411.4,2411.3,2.51426162]
[1728138853832,1.10077,2411.4,2411.3,3.02837633]
[1728138854330,1.10077,2411.4,2411.3,2.51426162]
[1728138855134,1.10077,2411.4,2411.3,2.51400482]
[1728138855334,1.10077,2411.4,2411.3,1.08773297]
[1728138856734,0.4089,2411.4,2411.3,1.37801297]
[1728138856934,0.4089,2411.4,2411.3,1.76601297]
[1728138857529,0.4089,2411.4,2411.3,2.27999041]
[1728138857738,0.4089,2411.4,2411.3,3.70598425]
[1728138857932,0.4089,2411.4,2411.3,3.19200541]
[1728138858440,0.69917,2411.4,2411.3,1.60171082]
[1728138859142,0.4089,2411.4,2411.3,1.60171082]
[1728138859724,0.4089,2411.4,2411.3,1.89199082]
[1728138859922,0.4089,2411.4,2411.3,1.37801297]
[1728138860734,0.4089,2411.4,2411.3,1.08773297]
[1728138860935,0.69917,2411.4,2411.3,1.08773297]
[1728138861530,1.09157,2411.4,2411.3,1.08773297]
[1728138861725,1.09157,2411.4,2411.2,1.08773297]
[1728138862631,1.78028,2411.3,2411.2,1.08773297]
[1728138862836,1.49,2411.3,2410.9,1.18473297]
[1728138863137,1.49,2411.3,2410.8,1.91705429]
[1728138863138,0.29032,2411.0,2410.8,1.08773297]
[1728138863439,1.9116,2410.9,2410.8,1.37807297]
[1728138863631,1.9116,2410.9,2410.8,0.29034]
[1728138863829,1.9116,2410.9,2410.7,4.69103297]
[1728138864037,1.9116,2410.9,2410.8,0.29034]
[1728138864743,0.4216,2410.9,2410.8,0.29034]
[1728138866844,0.4216,2410.9,2410.7,4.69103297]
[1728138867039,0.71193,2410.9,2410.7,4.98138297]
[1728138867241,0.4216,2410.9,2410.7,4.98138297]
[1728138867436,0.4216,2410.9,2410.8,0.29034]
[1728138867636,0.4216,2410.9,2410.7,3.89364]
[1728138869151,0.4216,2410.9,2410.8,0.29034]
[1728138870141,0.4216,2410.9,2410.7,3.6033]
[1728138870340,1.49,2410.8,2410.4,4.68291297]
[1728138870541,1.49,2410.8,2410.4,3.2078]
[1728138870542,1.78038,2410.5,2410.4,3.2078]
[1728138871445,2.20988,2410.5,2410.4,3.2078]
[1728138871650,1.9195,2410.5,2410.4,3.2078]
[1728138872142,2.20988,2410.5,2410.4,3.2078]
[1728138872943,1.9195,2410.5,2410.4,3.2078]
[1728138873146,1.9195,2410.5,2410.4,3.49819]
[1728138873345,1.9195,2410.5,2410.4,3.2078]
[1728138873855,2.20988,2410.5,2410.4,3.2078]
[1728138874254,6.35868,2410.5,2410.4,3.2078]
[1728138874458,0.29041,2410.3,2410.1,3.49822]
[1728138874749,0.29041,2410.3,2410.1,0.29042]
[1728138874750,1.78041,2410.3,2410.1,0.29042]
[1728138874956,0.3953,2410.2,2410.1,0.29042]
[1728138875154,0.3953,2410.2,2409.9,0.8488]
[1728138875351,0.4011,2410.1,2410.0,0.29043]
[1728138875949,2.18153,2410.1,2409.8,3.49825]
[1728138876151,1.49,2410.0,2409.8,3.49825]
[1728138876352,1.49,2410.0,2409.8,3.2078]
[1728138876353,1.78044,2410.0,2409.8,3.2078]
[1728138876955,4.1496,2409.9,2409.8,3.2078]
[1728138877161,4.44005,2409.9,2409.8,3.2078]
[1728138878454,10.44005,2409.9,2409.8,3.2078]
[1728138880159,10.1496,2409.9,2409.4,0.38751]
[1728138880360,0.4011,2410.1,2409.4,0.29051]
[1728138880361,1.49,2409.5,2409.4,0.29051]
[1728138882053,1.49,2409.5,2409.3,3.49832]
[1728138883360,1.49,2409.5,2409.4,0.29051]
[1728138883559,1.49,2409.5,2409.3,3.49832]
[1728138885557,1.49,2409.5,2409.3,3.2078]
[1728138885764,0.29051,2409.4,2409.3,3.2078]
[1728138886155,1.78051,2409.4,2409.3,3.2078]